[Event "MCR rapid mládeže 2023 U16"]
[Site "Harachov, Czech Republic"]
[Date "2023.09.10"]
[Round "9.5"]
[White "Babula, Matej"]
[Black "Krautschneider, Daniel Jan"]
[Result "0-1"]
[TimeControl "20min+5s/move"]
[WhiteElo "1865"]
[BlackElo "1419"]

1. e4 {[%clk 00:20:09]} c5 {[%clk 00:20:09]} {[%emt 00:00:02]} 2. Nf3 {[%clk
00:20:12]} {[%emt 00:00:01]} Nc6 {[%clk 00:20:13]} {[%emt 00:00:01]} 3. d4
{[%clk 00:20:16]} cxd4 {[%clk 00:20:16]} {[%emt 00:00:02]} 4. Nxd4 {[%clk
00:20:20]} {[%emt 00:00:01]} Nf6 {[%clk 00:20:20]} {[%emt 00:00:02]} 5. Nc3
{[%clk 00:20:23]} {[%emt 00:00:01]} g6 {[%clk 00:20:23]} {[%emt 00:00:02]} 6.
Be3 {[%clk 00:20:21]} {[%emt 00:00:07]} Bg7 {[%clk 00:20:26]} {[%emt 00:00:02]}
7. Bc4 {[%clk 00:20:25]} {[%emt 00:00:02]} O-O {[%clk 00:20:27]} {[%emt
00:00:03]} 8. Bb3 {[%clk 00:20:29]} {[%emt 00:00:01]} d6 {[%clk 00:20:17]}
{[%emt 00:00:15]} 9. f3 {[%clk 00:20:32]} {[%emt 00:00:02]} Bd7 {[%clk
00:20:17]} {[%emt 00:00:04]} 10. h4 {[%clk 00:20:31]} {[%emt 00:00:05]} a6
{[%clk 00:20:04]} {[%emt 00:00:19]} 11. h5 {[%clk 00:18:56]} {[%emt 00:01:41]}
Nxh5 {[%clk 00:19:56]} {[%emt 00:00:13]} 12. g4 {[%clk 00:18:47]} {[%emt
00:00:13]} Nf6 {[%clk 00:19:13]} {[%emt 00:00:48]} 13. Bh6 {[%clk 00:16:54]}
{[%emt 00:01:58]} Qb6 {[%clk 00:18:06]} {[%emt 00:01:12]} 14. Bxg7 {[%clk
00:14:01]} {[%emt 00:02:57]} Kxg7 {[%clk 00:17:42]} {[%emt 00:00:29]} 15. Nxc6
{[%clk 00:13:22]} {[%emt 00:00:43]} Qe3+ {[%clk 00:16:35]} {[%emt 00:01:12]} 16.
Qe2 {[%clk 00:12:17]} {[%emt 00:01:11]} Qxe2+ {[%clk 00:16:37]} {[%emt
00:00:04]} 17. Nxe2 {[%clk 00:12:21]} {[%emt 00:00:01]} Bxc6 {[%clk 00:16:26]}
{[%emt 00:00:16]} 18. O-O-O {[%clk 00:11:45]} {[%emt 00:00:41]} a5 {[%clk
00:15:28]} {[%emt 00:01:03]} 19. Nf4 {[%clk 00:10:22]} {[%emt 00:01:27]} a4
{[%clk 00:14:10]} {[%emt 00:01:25]} 20. Bd5 {[%clk 00:09:40]} {[%emt 00:00:46]}
Nxd5 {[%clk 00:12:53]} {[%emt 00:01:22]} 21. exd5 {[%clk 00:09:44]} {[%emt
00:00:01]} Bb5 {[%clk 00:12:38]} {[%emt 00:00:20]} 22. Rde1 {[%clk 00:09:31]}
{[%emt 00:00:18]} Rfe8 {[%clk 00:11:46]} {[%emt 00:00:58]} 23. g5 {[%clk
00:09:20]} {[%emt 00:00:15]} Bd7 {[%clk 00:09:59]} {[%emt 00:01:52]} 24. Re2
{[%clk 00:07:55]} {[%emt 00:01:30]} Bf5 {[%clk 00:07:57]} {[%emt 00:02:07]} 25.
Reh2 {[%clk 00:05:36]} {[%emt 00:02:24]} Rh8 {[%clk 00:07:57]} {[%emt
00:00:05]} 26. Re1 {[%clk 00:05:31]} {[%emt 00:00:10]} Rae8 {[%clk 00:07:44]}
{[%emt 00:00:18]} 27. c3 {[%clk 00:03:52]} {[%emt 00:01:44]} h6 {[%clk
00:06:08]} {[%emt 00:01:41]} 28. gxh6+ {[%clk 00:02:53]} {[%emt 00:01:04]} Rxh6
{[%clk 00:06:11]} {[%emt 00:00:02]} 29. Rxh6 {[%clk 00:02:57]} Kxh6 {[%clk
00:06:14]} {[%emt 00:00:02]} 30. Ne2 {[%clk 00:02:43]} {[%emt 00:00:19]} Kg7
{[%clk 00:05:46]} {[%emt 00:00:33]} 31. Nd4 {[%clk 00:02:46]} {[%emt 00:00:02]}
Rh8 {[%clk 00:05:13]} {[%emt 00:00:37]} 32. Nxf5+ {[%clk 00:02:09]} {[%emt
00:00:43]} gxf5 {[%clk 00:05:18]} {[%emt 00:00:01]} 33. Rxe7 {[%clk 00:02:12]}
{[%emt 00:00:02]} Rh1+ {[%clk 00:05:16]} {[%emt 00:00:06]} 34. Kd2 {[%clk
00:01:46]} {[%emt 00:00:31]} Rh2+ {[%clk 00:05:06]} {[%emt 00:00:15]} 35. Re2
{[%clk 00:00:55]} {[%emt 00:00:55]} Rh3 {[%clk 00:05:04]} {[%emt 00:00:08]} 36.
Ke3 {[%clk 00:00:34]} {[%emt 00:00:26]} Kf6 {[%clk 00:04:52]} {[%emt 00:00:17]}
37. Kf4 {[%clk 00:00:32]} {[%emt 00:00:08]} Rh4+ {[%clk 00:04:53]} {[%emt
00:00:03]} 38. Kg3 {[%clk 00:00:35]} {[%emt 00:00:02]} Rh8 {[%clk 00:04:55]}
{[%emt 00:00:04]} 39. f4 {[%clk 00:00:34]} {[%emt 00:00:06]} Rc8 {[%clk
00:04:23]} {[%emt 00:00:36]} 40. Kf3 {[%clk 00:00:30]} {[%emt 00:00:09]} a3
{[%clk 00:04:19]} {[%emt 00:00:09]} 41. bxa3 {[%clk 00:00:24]} {[%emt
00:00:11]} Rxc3+ {[%clk 00:04:15]} {[%emt 00:00:09]} 42. Re3 {[%clk 00:00:29]}
Rc2 {[%clk 00:04:14]} {[%emt 00:00:07]} 43. Rb3 {[%clk 00:00:30]} {[%emt
00:00:03]} Rxa2 {[%clk 00:04:14]} {[%emt 00:00:05]} 44. Rxb7 {[%clk 00:00:27]}
{[%emt 00:00:08]} Rxa3+ {[%clk 00:04:18]} {[%emt 00:00:01]} 45. Kf2 {[%clk
00:00:31]} Ra5 {[%clk 00:04:17]} {[%emt 00:00:06]} 46. Ke3 {[%clk 00:00:20]}
{[%emt 00:00:16]} Rxd5 {[%clk 00:04:21]} {[%emt 00:00:02]} 47. Rd7 {[%clk
00:00:23]} {[%emt 00:00:02]} Ke6 {[%clk 00:04:20]} {[%emt 00:00:05]} 48. Rd8
{[%clk 00:00:27]} {[%emt 00:00:01]} Ra5 {[%clk 00:04:18]} {[%emt 00:00:07]} 49.
Rf8 {[%clk 00:00:19]} {[%emt 00:00:13]} Kd5 {[%clk 00:04:12]} {[%emt 00:00:12]}
50. Rxf7 {[%clk 00:00:20]} {[%emt 00:00:04]} Ra3+ {[%clk 00:04:16]} 51. Kf2
{[%clk 00:00:16]} {[%emt 00:00:09]} Ke4 {[%clk 00:04:20]} {[%emt 00:00:01]} 52.
Rd7 {[%clk 00:00:18]} {[%emt 00:00:03]} d5 {[%clk 00:04:24]} {[%emt 00:00:01]}
53. Ke2 {[%clk 00:00:16]} {[%emt 00:00:07]} Ra2+ {[%clk 00:04:24]} {[%emt
00:00:05]} 54. Ke1 {[%clk 00:00:17]} {[%emt 00:00:04]} d4 {[%clk 00:04:22]}
{[%emt 00:00:07]} 55. Kf1 {[%clk 00:00:14]} {[%emt 00:00:07]} Kf3 {[%clk
00:03:38]} {[%emt 00:00:50]} 56. Ke1 {[%clk 00:00:18]} {[%emt 00:00:01]} Ke3
{[%clk 00:03:42]} 57. Kf1 {[%clk 00:00:22]} {[%emt 00:00:02]} Ra1+ {[%clk
00:03:28]} {[%emt 00:00:18]} 58. Kg2 {[%clk 00:00:26]} d3 {[%clk 00:03:29]}
{[%emt 00:00:05]} 59. Re7+ {[%clk 00:00:24]} {[%emt 00:00:06]} Kxf4 {[%clk
00:03:24]} {[%emt 00:00:10]} 60. Rd7 {[%clk 00:00:18]} {[%emt 00:00:11]} Ke3
{[%clk 00:03:26]} {[%emt 00:00:03]} 61. Re7+ {[%clk 00:00:22]} Kd2 {[%clk
00:03:28]} {[%emt 00:00:04]} 62. Kf2 {[%clk 00:00:26]} Ra4 {[%clk 00:03:22]}
{[%emt 00:00:12]} 63. Re5 {[%clk 00:00:19]} {[%emt 00:00:13]} Kd1 {[%clk
00:03:08]} {[%emt 00:00:19]} 64. Rxf5 {[%clk 00:00:16]} {[%emt 00:00:08]} d2
{[%clk 00:03:05]} {[%emt 00:00:08]} 65. Rc5 {[%clk 00:00:20]} Ra8 {[%clk
00:03:02]} {[%emt 00:00:07]} 66. Rc7 {[%clk 00:00:24]} {[%emt 00:00:02]} Rf8+
{[%clk 00:03:06]} {[%emt 00:00:02]} 67. Kg2 {[%clk 00:00:26]} {[%emt 00:00:02]}
Ra8 {[%clk 00:02:38]} {[%emt 00:00:33]} 68. Kf2 {[%clk 00:00:29]} {[%emt
00:00:02]} Ra2 {[%clk 00:02:40]} {[%emt 00:00:02]} 69. Kf1 {[%clk 00:00:18]}
{[%emt 00:00:17]} Rc2 {[%clk 00:02:31]} {[%emt 00:00:14]} 70. Ra7 {[%clk
00:00:21]} {[%emt 00:00:02]} Kc1 {[%clk 00:02:34]} {[%emt 00:00:02]} 71. Ra1+
{[%clk 00:00:15]} {[%emt 00:00:10]} Kb2 {[%clk 00:02:37]} {[%emt 00:00:02]} 72.
Rd1 {[%clk 00:00:19]} {[%emt 00:00:01]} Rc1 {[%clk 00:02:37]} {[%emt 00:00:06]}
73. Ke2 {[%clk 00:00:23]} {[%emt 00:00:01]} Rxd1 74. Kxd1 {[%clk 00:00:27]} Kc3
{[%clk 00:02:46]} 0-1

[Event "MCR rapid mládeže 2023 U16"]
[Site "Harachov, Czech Republic"]
[Date "2023.09.10"]
[Round "9.6"]
[White "Hrdlicka, Jan"]
[Black "Vana, Jan"]
[Result "0-1"]
[TimeControl "20min+5s/move"]
[WhiteElo "1418"]
[BlackElo "1681"]

1. e4 {[%clk 00:20:08]} {[%emt 00:00:02]} c5 {[%clk 00:20:09]} {[%emt
00:00:01]} 2. Nf3 {[%clk 00:20:11]} {[%emt 00:00:01]} Nc6 {[%clk 00:20:09]}
{[%emt 00:00:01]} 3. d4 {[%clk 00:20:14]} {[%emt 00:00:02]} cxd4 {[%clk
00:20:18]} {[%emt 00:00:01]} 4. Nxd4 {[%clk 00:20:18]} {[%emt 00:00:01]} Nf6
{[%clk 00:20:21]} {[%emt 00:00:01]} 5. Nc3 {[%clk 00:20:22]} {[%emt 00:00:01]}
e5 {[%clk 00:20:26]} 6. Nb3 {[%clk 00:20:15]} {[%emt 00:00:12]} Bb4 {[%clk
00:20:27]} {[%emt 00:00:03]} 7. f3 {[%clk 00:18:56]} {[%emt 00:01:25]} d5
{[%clk 00:19:03]} {[%emt 00:01:29]} 8. Bd2 {[%clk 00:15:44]} {[%emt 00:03:17]}
Bxc3 {[%clk 00:16:38]} {[%emt 00:02:31]} 9. Bxc3 {[%clk 00:15:37]} {[%emt
00:00:12]} dxe4 {[%clk 00:16:11]} {[%emt 00:00:31]} 10. Qxd8+ {[%clk 00:15:21]}
{[%emt 00:00:21]} Kxd8 {[%clk 00:15:54]} {[%emt 00:00:22]} 11. O-O-O+ {[%clk
00:15:20]} {[%emt 00:00:06]} Kc7 {[%clk 00:15:04]} {[%emt 00:00:56]} 12. Bb5
{[%emt 00:01:29]} Re8 {[%clk 00:09:53]} {[%emt 00:05:14]} 13. Bxc6 {[%clk
00:12:40]} {[%emt 00:01:23]} Kxc6 {[%clk 00:03:32]} {[%emt 00:06:26]} 14. Rhe1
{[%clk 00:12:22]} {[%emt 00:00:22]} Bf5 {[%clk 00:02:32]} {[%emt 00:01:05]} 15.
Nd2 {[%clk 00:10:24]} {[%emt 00:02:02]} Rad8 {[%clk 00:01:03]} {[%emt
00:01:36]} 16. Nxe4 {[%clk 00:09:06]} {[%emt 00:01:23]} Rxd1+ {[%clk 00:01:07]}
{[%emt 00:00:01]} 17. Kxd1 {[%clk 00:09:02]} {[%emt 00:00:08]} Bxe4 {[%clk
00:00:26]} {[%emt 00:00:47]} 18. fxe4 {[%clk 00:09:05]} {[%emt 00:00:02]} Nd7
{[%clk 00:00:23]} {[%emt 00:00:07]} 19. Rf1 {[%clk 00:08:00]} {[%emt 00:01:11]}
f6 {[%clk 00:00:27]} {[%emt 00:00:01]} 20. Rf3 {[%clk 00:07:12]} {[%emt
00:00:50]} Nc5 {[%clk 00:00:31]} {[%emt 00:00:04]} 21. Re3 {[%clk 00:06:41]}
{[%emt 00:00:36]} Rd8+ {[%clk 00:00:35]} {[%emt 00:00:01]} 22. Ke2 {[%clk
00:06:14]} {[%emt 00:00:32]} Kb5 {[%clk 00:00:22]} {[%emt 00:00:19]} 23. a3
{[%clk 00:05:30]} {[%emt 00:00:48]} Kc6 {[%clk 00:00:15]} {[%emt 00:00:11]} 24.
Bb4 {[%clk 00:04:49]} {[%emt 00:00:46]} Ne6 {[%clk 00:00:09]} {[%emt 00:00:12]}
25. g3 {[%clk 00:04:12]} {[%emt 00:00:41]} Nd4+ {[%clk 00:00:07]} {[%emt
00:00:08]} 26. Kf1 {[%clk 00:03:05]} {[%emt 00:01:11]} b6 {[%clk 00:00:09]}
{[%emt 00:00:04]} 27. Bd2 {[%clk 00:01:48]} {[%emt 00:01:22]} Kd7 {[%clk
00:00:08]} {[%emt 00:00:06]} 28. Rd3 {[%clk 00:01:21]} {[%emt 00:00:32]} Ke6
{[%clk 00:00:08]} {[%emt 00:00:05]} 29. Be3 {[%clk 00:01:01]} {[%emt 00:00:25]}
Rd7 {[%clk 00:00:07]} {[%emt 00:00:07]} 30. Bxd4 {[%clk 00:00:52]} {[%emt
00:00:13]} Rxd4 {[%clk 00:00:08]} {[%emt 00:00:04]} 31. Rxd4 {[%clk 00:00:56]}
{[%emt 00:00:01]} exd4 {[%clk 00:00:12]} 32. Ke2 {[%clk 00:00:55]} {[%emt
00:00:06]} b5 {[%clk 00:00:09]} {[%emt 00:00:08]} 33. Kd3 {[%clk 00:00:45]}
{[%emt 00:00:15]} Ke5 {[%clk 00:00:13]} {[%emt 00:00:02]} 34. c3 {[%clk
00:00:38]} {[%emt 00:00:11]} dxc3 {[%clk 00:00:14]} {[%emt 00:00:04]} 35. bxc3
{[%clk 00:00:43]} g5 {[%clk 00:00:11]} {[%emt 00:00:08]} 36. g4 {[%clk
00:00:21]} {[%emt 00:00:26]} Kf4 {[%clk 00:00:09]} {[%emt 00:00:07]} 37. h3
{[%clk 00:00:18]} {[%emt 00:00:09]} Kg3 {[%clk 00:00:09]} {[%emt 00:00:05]} 38.
c4 {[%clk 00:00:15]} {[%emt 00:00:08]} bxc4+ {[%clk 00:00:12]} {[%emt
00:00:02]} 39. Kxc4 {[%clk 00:00:17]} {[%emt 00:00:02]} Kxh3 {[%clk 00:00:16]}
{[%emt 00:00:02]} 40. Kd5 {[%clk 00:00:12]} {[%emt 00:00:10]} Kxg4 {[%clk
00:00:12]} {[%emt 00:00:09]} 41. Kc6 {[%clk 00:00:08]} {[%emt 00:00:08]} h5
{[%clk 00:00:12]} {[%emt 00:00:05]} 42. Kb7 {[%clk 00:00:12]} {[%emt 00:00:02]}
a5 {[%clk 00:00:09]} {[%emt 00:00:07]} 43. Kb6 {[%clk 00:00:16]} {[%emt
00:00:01]} a4 {[%clk 00:00:14]} 44. Kb5 {[%clk 00:00:20]} h4 {[%clk 00:00:17]}
{[%emt 00:00:03]} 45. Kxa4 {[%clk 00:00:24]} {[%emt 00:00:02]} h3 {[%clk
00:00:21]} 46. Kb5 {[%clk 00:00:24]} {[%emt 00:00:06]} h2 {[%clk 00:00:25]}
{[%emt 00:00:01]} 47. a4 {[%clk 00:00:27]} {[%emt 00:00:01]} h1=Q {[%clk
00:00:28]} {[%emt 00:00:02]} 0-1

[Event "MCR rapid mládeže 2023 U16"]
[Site "Harachov, Czech Republic"]
[Date "2023.09.10"]
[Round "9.7"]
[White "Martirosyan, David"]
[Black "Topencik, Bruno"]
[Result "1-0"]
[TimeControl "20min+5s/move"]
[WhiteElo "1861"]
[BlackElo "1451"]

1. d4 {[%clk 00:20:09]} e6 {[%clk 00:20:08]} {[%emt 00:00:03]} 2. Nf3 {[%clk
00:20:06]} {[%emt 00:00:07]} Nf6 {[%clk 00:20:11]} {[%emt 00:00:02]} 3. Nbd2
{[%clk 00:19:45]} {[%emt 00:00:27]} d5 {[%clk 00:20:04]} {[%emt 00:00:11]} 4.
e3 {[%clk 00:19:44]} {[%emt 00:00:07]} Be7 {[%clk 00:19:34]} {[%emt 00:00:36]}
5. Bd3 {[%clk 00:19:45]} {[%emt 00:00:03]} O-O {[%clk 00:19:34]} {[%emt
00:00:05]} 6. b3 {[%clk 00:19:49]} {[%emt 00:00:02]} Nbd7 {[%clk 00:19:09]}
{[%emt 00:00:29]} 7. Bb2 {[%clk 00:19:49]} {[%emt 00:00:05]} Re8 {[%clk
00:18:57]} {[%emt 00:00:16]} 8. O-O {[%clk 00:19:49]} {[%emt 00:00:06]} Nf8
{[%clk 00:18:59]} {[%emt 00:00:03]} 9. Ne5 {[%clk 00:19:43]} {[%emt 00:00:12]}
Ng6 {[%clk 00:18:31]} {[%emt 00:00:32]} 10. f4 {[%clk 00:19:47]} {[%emt
00:00:02]} Qd6 {[%clk 00:17:58]} {[%emt 00:00:36]} 11. a4 {[%clk 00:19:30]}
{[%emt 00:00:24]} c5 {[%clk 00:17:33]} {[%emt 00:00:30]} 12. Rf3 {[%clk
00:19:05]} {[%emt 00:00:30]} Bd7 {[%clk 00:17:05]} {[%emt 00:00:33]} 13. Rh3
{[%clk 00:18:35]} {[%emt 00:00:34]} Bc6 {[%clk 00:16:39]} {[%emt 00:00:31]} 14.
g4 {[%clk 00:17:37]} {[%emt 00:01:03]} Nd7 {[%clk 00:15:40]} {[%emt 00:01:05]}
15. g5 {[%clk 00:17:12]} {[%emt 00:00:30]} Ndf8 {[%clk 00:14:43]} {[%emt
00:01:01]} 16. Qh5 {[%clk 00:16:19]} {[%emt 00:00:58]} a6 {[%clk 00:13:26]}
{[%emt 00:01:23]} 17. Ba3 {[%clk 00:15:36]} {[%emt 00:00:47]} b6 {[%clk
00:12:48]} {[%emt 00:00:43]} 18. Ndf3 {[%clk 00:15:14]} {[%emt 00:00:27]} Qc7
{[%clk 00:11:19]} {[%emt 00:01:35]} 19. Nh4 {[%clk 00:13:49]} {[%emt 00:01:29]}
Nxh4 {[%clk 00:11:20]} {[%emt 00:00:04]} 20. Rxh4 {[%clk 00:13:38]} {[%emt
00:00:16]} g6 {[%clk 00:11:13]} {[%emt 00:00:12]} 21. Qh6 {[%clk 00:11:51]}
{[%emt 00:01:52]} Bb7 {[%clk 00:08:15]} {[%emt 00:03:02]} 22. Ng4 {[%clk
00:10:55]} {[%emt 00:01:01]} f5 {[%clk 00:07:42]} {[%emt 00:00:38]} 23. gxf6
{[%clk 00:10:43]} {[%emt 00:00:18]} Bd8 {[%clk 00:07:23]} {[%emt 00:00:21]} 24.
dxc5 {[%clk 00:07:53]} {[%emt 00:02:57]} bxc5 {[%clk 00:07:14]} {[%emt
00:00:14]} 25. Bxc5 {[%clk 00:07:40]} {[%emt 00:00:18]} d4 {[%clk 00:06:18]}
{[%emt 00:01:01]} 26. Bxd4 {[%clk 00:06:53]} {[%emt 00:00:51]} Bf3 {[%clk
00:05:12]} {[%emt 00:01:08]} 27. Qg7+ {[%clk 00:05:41]} {[%emt 00:01:20]} Qxg7
{[%clk 00:05:03]} {[%emt 00:00:15]} 28. fxg7 {[%clk 00:05:45]} {[%emt
00:00:01]} Nd7 {[%clk 00:05:01]} {[%emt 00:00:06]} 29. Nh6# {[%emt 00:00:04]}
1-0

[Event "MCR rapid mládeže 2023 U16"]
[Site "Harachov, Czech Republic"]
[Date "2023.09.10"]
[Round "9.8"]
[White "Garabik, Marek"]
[Black "Hrbek, Jachym"]
[Result "1-0"]
[TimeControl "20min+5s/move"]
[WhiteElo "1787"]
[BlackElo "1769"]

1. e4 {[%clk 00:20:08]} {[%emt 00:00:02]} c6 {[%clk 00:19:38]} {[%emt
00:00:33]} 2. d4 {[%clk 00:20:12]} {[%emt 00:00:02]} d5 {[%clk 00:19:42]} 3. f3
{[%clk 00:20:16]} {[%emt 00:00:01]} e5 {[%clk 00:19:20]} {[%emt 00:00:26]} 4.
dxe5 {[%clk 00:19:16]} {[%emt 00:01:05]} Bc5 {[%clk 00:19:23]} {[%emt
00:00:02]} 5. Bd3 {[%clk 00:18:30]} {[%emt 00:00:51]} Qb6 {[%clk 00:19:22]}
{[%emt 00:00:06]} 6. Ne2 {[%clk 00:17:42]} {[%emt 00:00:53]} Bf2+ {[%clk
00:17:11]} {[%emt 00:02:16]} 7. Kf1 {[%clk 00:17:44]} {[%emt 00:00:03]} Nd7
{[%clk 00:16:41]} {[%emt 00:00:35]} 8. Nbc3 {[%clk 00:16:41]} {[%emt 00:01:08]}
Bh4 {[%clk 00:16:25]} {[%emt 00:00:21]} 9. g3 {[%clk 00:15:42]} {[%emt
00:01:04]} Nxe5 {[%clk 00:16:07]} {[%emt 00:00:24]} 10. Nf4 {[%clk 00:14:12]}
{[%emt 00:01:35]} Be7 {[%clk 00:14:53]} {[%emt 00:01:16]} 11. Qe2 {[%clk
00:12:17]} {[%emt 00:02:02]} g5 {[%clk 00:12:15]} {[%emt 00:02:44]} 12. Ng2
{[%clk 00:12:16]} {[%emt 00:00:06]} d4 {[%clk 00:10:07]} {[%emt 00:02:13]} 13.
Nd1 {[%clk 00:11:50]} {[%emt 00:00:31]} Bh3 {[%clk 00:08:42]} {[%emt 00:01:31]}
14. Nf2 {[%clk 00:11:50]} {[%emt 00:00:04]} Bxg2+ {[%clk 00:07:24]} {[%emt
00:01:23]} 15. Kxg2 {[%clk 00:11:53]} {[%emt 00:00:03]} O-O-O {[%emt 00:00:13]}
16. f4 {[%clk 00:11:32]} {[%emt 00:00:21]} gxf4 {[%clk 00:06:55]} {[%emt
00:00:31]} 17. Bxf4 {[%clk 00:10:52]} {[%emt 00:00:45]} Bd6 {[%clk 00:06:46]}
{[%emt 00:00:14]} 18. Ng4 {[%clk 00:07:35]} {[%emt 00:03:22]} f6 {[%clk
00:05:27]} {[%emt 00:01:23]} 19. Bxe5 {[%clk 00:06:07]} {[%emt 00:01:34]} fxe5
{[%clk 00:05:18]} {[%emt 00:00:14]} 20. Rhf1 {[%clk 00:05:45]} {[%emt
00:00:26]} h5 {[%clk 00:04:42]} {[%emt 00:00:41]} 21. Nf6 {[%clk 00:04:22]}
{[%emt 00:01:28]} Nxf6 {[%clk 00:03:36]} {[%emt 00:01:11]} 22. Rxf6 {[%clk
00:04:26]} {[%emt 00:00:01]} Qc7 {[%clk 00:03:25]} {[%emt 00:00:16]} 23. Raf1
{[%clk 00:04:18]} {[%emt 00:00:12]} Rdg8 {[%clk 00:03:23]} {[%emt 00:00:08]} 24.
Rf7 {[%clk 00:04:12]} {[%emt 00:00:11]} Be7 {[%emt 00:01:28]} 25. Bc4 {[%emt
00:00:16]} Rg6 {[%clk 00:02:29]} {[%emt 00:00:43]} 26. Qf3 {[%clk 00:02:09]}
{[%emt 00:00:51]} Kb8 {[%clk 00:02:10]} {[%emt 00:00:23]} 27. Qf5 {[%clk
00:02:09]} {[%emt 00:00:05]} Rgh6 {[%clk 00:00:53]} {[%emt 00:01:22]} 28. Rg7
{[%clk 00:00:54]} {[%emt 00:01:21]} Qd6 {[%clk 00:00:38]} {[%emt 00:00:20]} 29.
Qf7 {[%clk 00:00:35]} {[%emt 00:00:24]} h4 {[%clk 00:00:10]} {[%emt 00:00:33]}
30. Qxe7 {[%clk 00:00:35]} {[%emt 00:00:05]} Qxe7 {[%clk 00:00:14]} {[%emt
00:00:02]} 31. Rxe7 {[%clk 00:00:37]} {[%emt 00:00:03]} hxg3 {[%clk 00:00:17]}
{[%emt 00:00:02]} 32. Rff7 {[%clk 00:00:27]} {[%emt 00:00:15]} Rxh2+ {[%clk
00:00:11]} {[%emt 00:00:12]} 33. Kxg3 {[%clk 00:00:31]} {[%emt 00:00:01]} R2h3+
{[%clk 00:00:14]} {[%emt 00:00:02]} 34. Kg4 {[%clk 00:00:31]} {[%emt 00:00:05]}
R8h4+ {[%clk 00:00:09]} {[%emt 00:00:10]} 35. Kf5 {[%clk 00:00:35]} {[%emt
00:00:01]} Rf3+ {[%clk 00:00:11]} {[%emt 00:00:03]} 36. Kxe5 {[%clk 00:00:38]}
{[%emt 00:00:02]} Rh5+ {[%clk 00:00:09]} {[%emt 00:00:07]} 37. Ke6 {[%clk
00:00:22]} {[%emt 00:00:21]} Rh6+ {[%clk 00:00:09]} {[%emt 00:00:06]} 38. Kd7
{[%clk 00:00:25]} Rxf7 {[%clk 00:00:09]} {[%emt 00:00:05]} 39. Rxf7 {[%clk
00:00:29]} {[%emt 00:00:01]} b5 {[%clk 00:00:09]} {[%emt 00:00:06]} 40. Bd3
{[%clk 00:00:29]} {[%emt 00:00:05]} Kb7 {[%clk 00:00:10]} {[%emt 00:00:05]} 41.
e5 {[%clk 00:00:31]} {[%emt 00:00:02]} c5 {[%clk 00:00:09]} {[%emt 00:00:06]}
42. e6 {[%clk 00:00:34]} {[%emt 00:00:02]} c4 {[%clk 00:00:07]} {[%emt
00:00:07]} 43. Be4+ {[%clk 00:00:38]} {[%emt 00:00:01]} Kb6 {[%clk 00:00:12]}
44. e7 {[%clk 00:00:41]} d3 {[%clk 00:00:13]} {[%emt 00:00:04]} 45. cxd3 {[%clk
00:00:45]} {[%emt 00:00:01]} cxd3 {[%clk 00:00:12]} {[%emt 00:00:05]} 46. Bxd3
{[%clk 00:00:48]} {[%emt 00:00:02]} Rh3 {[%clk 00:00:12]} {[%emt 00:00:06]} 47.
Bf5 {[%clk 00:00:47]} {[%emt 00:00:06]} Rh2 {[%clk 00:00:11]} {[%emt 00:00:05]}
48. Rf6+ {[%clk 00:00:50]} {[%emt 00:00:03]} Ka5 {[%clk 00:00:15]} 49. e8=Q
{[%clk 00:00:53]} {[%emt 00:00:02]} Rd2+ {[%clk 00:00:18]} {[%emt 00:00:02]} 50.
Kc8 {[%clk 00:00:56]} a6 {[%clk 00:00:19]} {[%emt 00:00:04]} 51. Qe6 {[%clk
00:00:58]} {[%emt 00:00:03]} Kb4 {[%clk 00:00:17]} {[%emt 00:00:08]} 52. Qe1
{[%clk 00:00:52]} {[%emt 00:00:10]} 1-0

[Event "MCR rapid mládeže 2023 U16"]
[Site "Harachov, Czech Republic"]
[Date "2023.09.10"]
[Round "9.9"]
[White "Slivova, Linda"]
[Black "Barteckova, Valerie"]
[Result "1-0"]
[TimeControl "20min+5s/move"]
[WhiteElo "1386"]
[BlackElo "1498"]

1. d4 {[%clk 00:20:08]} {[%emt 00:00:01]} d5 {[%clk 00:20:09]} {[%emt
00:00:01]} 2. Bf4 {[%clk 00:20:12]} {[%emt 00:00:01]} Bf5 {[%clk 00:20:10]}
{[%emt 00:00:04]} 3. Nf3 {[%clk 00:20:09]} {[%emt 00:00:08]} Nf6 {[%clk
00:20:14]} {[%emt 00:00:02]} 4. c4 {[%clk 00:20:12]} {[%emt 00:00:01]} c6
{[%clk 00:20:09]} {[%emt 00:00:10]} 5. Nc3 {[%clk 00:20:04]} {[%emt 00:00:13]}
e6 {[%clk 00:20:13]} {[%emt 00:00:02]} 6. e3 {[%clk 00:20:06]} {[%emt
00:00:03]} Bd6 {[%clk 00:20:15]} {[%emt 00:00:03]} 7. Ne5 {[%clk 00:18:46]}
{[%emt 00:01:25]} Bxe5 {[%clk 00:18:08]} {[%emt 00:02:12]} 8. Bxe5 {[%clk
00:18:36]} {[%emt 00:00:15]} Nbd7 {[%clk 00:17:54]} {[%emt 00:00:19]} 9. Bg3
{[%clk 00:18:25]} {[%emt 00:00:16]} Ne4 {[%clk 00:17:38]} {[%emt 00:00:21]} 10.
Nxe4 {[%clk 00:17:28]} {[%emt 00:01:02]} Bxe4 {[%clk 00:17:38]} {[%emt
00:00:05]} 11. f3 {[%clk 00:16:49]} {[%emt 00:00:43]} Bg6 {[%clk 00:17:41]}
{[%emt 00:00:02]} 12. c5 {[%clk 00:16:12]} {[%emt 00:00:43]} O-O {[%clk
00:16:14]} {[%emt 00:01:33]} 13. Bd3 {[%clk 00:15:15]} {[%emt 00:01:01]} Bxd3
{[%clk 00:15:39]} {[%emt 00:00:40]} 14. Qxd3 {[%clk 00:15:18]} {[%emt
00:00:02]} Re8 {[%clk 00:15:34]} {[%emt 00:00:10]} 15. O-O {[%clk 00:15:17]}
{[%emt 00:00:06]} e5 {[%clk 00:15:20]} {[%emt 00:00:18]} 16. Rae1 {[%clk
00:13:56]} {[%emt 00:01:26]} Qf6 {[%clk 00:14:21]} {[%emt 00:01:02]} 17. f4
{[%clk 00:12:12]} {[%emt 00:01:51]} exd4 {[%clk 00:12:21]} {[%emt 00:02:05]} 18.
exd4 {[%clk 00:12:13]} {[%emt 00:00:04]} Qd8 {[%clk 00:11:20]} {[%emt
00:01:05]} 19. f5 {[%clk 00:11:45]} {[%emt 00:00:34]} Qa5 {[%clk 00:09:19]}
{[%emt 00:01:58]} 20. a3 {[%clk 00:11:38]} {[%emt 00:00:21]} Nf6 {[%clk
00:08:54]} {[%emt 00:00:30]} 21. b4 {[%clk 00:11:20]} {[%emt 00:00:22]} Qa4
{[%clk 00:08:40]} {[%emt 00:00:06]} 22. Be5 {[%clk 00:09:30]} {[%emt 00:02:09]}
Ne4 {[%clk 00:08:13]} {[%emt 00:00:32]} 23. Rxe4 {[%clk 00:06:58]} {[%emt
00:02:36]} dxe4 {[%clk 00:08:05]} {[%emt 00:00:13]} 24. Qg3 {[%clk 00:07:02]}
Rxe5 {[%clk 00:06:04]} {[%emt 00:02:07]} 25. dxe5 {[%clk 00:06:57]} {[%emt
00:00:11]} Qc2 {[%clk 00:02:19]} {[%emt 00:03:49]} 26. f6 {[%clk 00:06:13]}
{[%emt 00:00:49]} g6 {[%clk 00:02:23]} {[%emt 00:00:01]} 27. Qg5 {[%clk
00:05:20]} {[%emt 00:00:58]} Kh8 {[%clk 00:01:35]} {[%emt 00:00:53]} 28. e6
{[%clk 00:04:39]} {[%emt 00:00:46]} fxe6 {[%clk 00:00:21]} {[%emt 00:01:19]} 29.
Qh6 {[%clk 00:03:34]} {[%emt 00:01:09]} Rg8 {[%clk 00:00:21]} {[%emt 00:00:06]}
30. f7 {[%clk 00:03:32]} {[%emt 00:00:08]} 1-0